bitfinex/quotes_SOLUSD_20250722
["timestamp","ask_amount","ask_price","bid_price","bid_amount"]
[1753155721074,10.72714542,198.61,198.58,0.03]
[1753155721276,26.72,198.65,198.58,0.03]
[1753155721277,15.76239214,198.6,198.58,0.03]
[1753155721480,10.72714542,198.59,198.58,0.03]
[1753155721678,15.76239214,198.6,198.58,0.03]
[1753155721879,0.72,198.59,198.58,0.03]
[1753155722307,15.76239214,198.6,198.58,0.03]
[1753155722874,5.0347397,198.62,198.58,0.03]
[1753155723305,5.03448623,198.63,198.58,0.03]
[1753155723489,10.72714542,198.59,198.58,0.03]
[1753155723897,11.44714542,198.59,198.57,0.03]
[1753155724192,0.72,198.58,198.49,10.72714542]
[1753155724392,16.78468397,198.57,198.46,11.48303532]
[1753155724594,0.72,198.56,198.51,10.72714542]
[1753155724794,0.72,198.56,198.5,10.72714542]
[1753155725181,5.03651473,198.55,198.5,10.72714542]
[1753155725402,5.03651473,198.55,198.48,39.54]
[1753155725595,5.03651473,198.55,198.51,11.41714542]
[1753155725906,5.03651473,198.55,198.51,0.69]
[1753155726107,5.03651473,198.55,198.5,10.72714542]
[1753155726407,5.03651473,198.55,198.46,22.21018074]
[1753155726408,10.72714542,198.53,198.46,22.21018074]
[1753155726604,0.72,198.54,198.46,11.48303532]
[1753155726605,36.72714542,198.52,198.46,11.48303532]
[1753155727202,17.62780155,198.55,198.49,10.72714542]
[1753155727395,10.72714542,198.54,198.47,10.72714542]
[1753155727583,17.62780155,198.55,198.47,10.72714542]
[1753155727779,10.72714542,198.53,198.46,22.90018074]
[1753155728007,0.72,198.53,198.46,11.48303532]
[1753155728189,26.0,198.52,198.46,11.48303532]
[1753155728381,36.72714542,198.52,198.46,11.48303532]
[1753155728583,11.44714542,198.53,198.46,22.21018074]
[1753155728784,15.76366015,198.55,198.48,10.72714542]
[1753155729178,10.72714542,198.52,198.46,11.48303532]
[1753155729378,10.72714542,198.47,198.46,11.48303532]
[1753155729699,11.38714542,198.47,198.46,11.48303532]
[1753155729887,0.66,198.47,198.46,11.48303532]
[1753155730286,11.38714542,198.47,198.46,11.48303532]
[1753155730590,11.38714542,198.47,198.46,11.51303532]
[1753155730998,0.66,198.47,198.46,11.51303532]
[1753155731198,11.38714542,198.47,198.46,11.51303532]
[1753155731513,16.42569028,198.47,198.46,11.51303532]
[1753155731684,5.03854486,198.47,198.46,11.51303532]
[1753155732633,42.42569028,198.47,198.46,11.51303532]
[1753155732792,26.0,198.44,198.36,0.7]
[1753155732991,26.0,198.44,198.3,5.04281969]
[1753155732992,10.72714542,198.37,198.3,0.7]
[1753155733195,0.66,198.43,198.32,10.72714542]
[1753155733408,31.03981453,198.42,198.38,0.03]
[1753155733615,10.72714542,198.39,198.38,0.03]
[1753155734023,11.38714542,198.39,198.38,0.03]
[1753155734218,10.72714542,198.39,198.38,0.03]
[1753155734805,11.38714542,198.39,198.27,41.6871]
[1753155735005,10.72714542,198.28,198.22,2.62762809]
[1753155735206,26.0,198.33,198.23,0.7]
[1753155735207,10.72714542,198.33,198.23,0.7]
[1753155735520,10.72714542,198.38,198.32,10.72714542]
[1753155735814,10.72714542,198.37,198.31,10.72714542]
[1753155736019,10.72714542,198.34,198.28,10.72714542]
[1753155736226,10.72714542,198.3,198.27,0.7]
[1753155736529,0.66,198.36,198.25,10.72714542]
[1753155736697,10.72714542,198.32,198.26,0.7]
[1753155736897,10.72714542,198.32,198.26,11.42714542]
[1753155737098,10.72714542,198.35,198.29,10.72714542]
[1753155737299,10.72714542,198.35,198.3,0.7]
[1753155737531,10.72714542,198.35,198.31,0.7]
[1753155737693,10.72714542,198.35,198.29,10.72714542]
[1753155737694,0.66,198.4,198.32,11.42714542]
[1753155737899,10.72714542,198.38,198.32,11.42714542]
[1753155738124,10.72714542,198.35,198.29,10.72714542]
[1753155738331,10.72714542,198.34,198.29,0.7]
[1753155738502,10.72714542,198.3,198.25,0.7]
[1753155738699,0.66,198.33,198.24,10.72714542]
[1753155738899,10.72714542,198.3,198.26,0.7]
[1753155739329,5.04235578,198.32,198.26,0.7]
[1753155739502,10.72714542,198.27,198.23,0.7]
[1753155739719,10.72714542,198.28,198.23,0.7]
[1753155740044,26.66,198.27,198.17,1.5271]
[1753155740252,10.72714542,198.26,198.2,10.72714542]
[1753155740426,10.72714542,198.23,198.17,1.5271]
[1753155740745,10.72714542,198.22,198.17,1.5271]
[1753155740922,10.72714542,198.23,198.17,1.5271]
[1753155741118,10.72714542,198.18,198.07,5.74872014]
[1753155741321,15.77280867,198.19,198.13,10.72714542]
[1753155741543,16.43257124,198.2,198.12,0.7]
[1753155741749,15.77257124,198.2,198.14,10.72714542]
[1753155741953,10.72714542,198.22,198.16,10.72714542]
[1753155742240,10.72714542,198.21,198.15,10.72714542]
[1753155742446,10.72714542,198.2,198.14,11.42714542]
[1753155743150,10.72714542,198.21,198.15,10.72714542]
[1753155743313,10.72714542,198.2,198.14,11.42714542]
[1753155743519,5.04566325,198.19,198.14,0.7]
[1753155743719,5.04566325,198.19,198.14,11.42714542]
[1753155743914,15.77280867,198.19,198.13,10.72714542]
[1753155744140,10.72714542,198.17,198.08,0.7]
[1753155744320,10.72714542,198.16,198.1,10.72714542]
[1753155744524,10.72714542,198.16,198.08,0.7]
[1753155744525,16.43280867,198.19,198.13,10.72714542]
[1753155744720,10.72714542,198.18,198.12,10.72714542]
[1753155744939,10.72714542,198.18,198.11,0.7]
[1753155745135,10.72714542,198.18,198.12,10.72714542]
[1753155745328,0.66,198.23,198.14,10.72714542]
[1753155745537,0.66,198.23,198.14,5.74677443]
[1753155745722,10.72714542,198.16,198.1,0.7]
[1753155745926,10.72714542,198.15,198.09,10.72714542]
[1753155746150,10.72714542,198.2,198.14,10.72714542]
[1753155746330,10.72714542,198.19,198.1,0.7]
[1753155746533,10.72714542,198.18,198.12,10.72714542]
[1753155746734,36.72714542,198.19,198.13,10.72714542]
[1753155747038,10.72714542,198.17,198.11,10.72714542]
[1753155747441,5.04642712,198.16,198.11,10.72714542]
[1753155747753,5.04642712,198.16,198.07,5.89073875]
[1753155747754,10.72714542,198.14,198.07,0.7]
[1753155748052,10.72714542,198.13,198.03,12.208116]
[1753155748233,10.72714542,198.11,198.06,10.72714542]
[1753155748556,0.66,198.13,198.06,10.72714542]
[1753155748723,26.66,198.13,198.06,10.72714542]
[1753155748925,10.72714542,198.1,198.05,10.72714542]
[1753155749134,0.66,198.1,198.05,10.72714542]
[1753155749454,26.0,198.15,198.02,1.6122]
[1753155749455,10.72714542,198.08,198.02,10.72714542]
[1753155749639,10.72714542,198.08,198.0,5.75050169]
[1753155749640,5.04846526,198.08,198.0,5.75050169]
[1753155749823,10.0,198.19,198.0,5.75050169]
[1753155749824,5.04719123,198.13,198.01,0.7]
[1753155750024,5.04719123,198.13,198.07,10.72714542]
[1753155750258,10.72714542,198.12,198.04,0.7]
[1753155750548,10.72714542,198.11,198.05,10.72714542]
[1753155750927,10.72714542,198.12,198.04,0.7]
[1753155751127,5.70719123,198.13,198.06,10.72714542]
[1753155751445,10.72714542,198.12,198.06,10.72714542]
[1753155751630,15.77476353,198.12,198.06,10.72714542]
[1753155751825,10.72714542,198.11,198.06,10.72714542]
[1753155752054,5.04761811,198.12,198.06,10.72714542]
[1753155752241,10.72714542,198.11,198.04,0.7]
[1753155752437,5.04761811,198.12,198.06,10.75714542]
[1753155752753,15.77476353,198.12,198.06,10.75714542]
[1753155752964,10.72714542,198.11,198.06,10.75714542]
[1753155753629,15.77485704,198.11,198.06,10.75714542]
[1753155753856,5.04771162,198.11,198.06,11.45714542]
[1753155754027,15.77461193,198.12,198.06,11.45714542]
[1753155754221,15.77461193,198.12,198.06,0.73]
[1753155754440,15.77461193,198.12,198.06,11.45714542]
[1753155754651,38.6169499,198.15,198.08,10.72714542]
[1753155754652,5.0469365,198.14,198.08,10.72714542]
[1753155754843,10.72714542,198.16,198.1,10.72714542]
[1753155755049,10.72714542,198.19,198.13,10.72714542]
[1753155755241,0.66,198.22,198.15,10.72714542]
[1753155755424,10.72714542,198.21,198.15,10.72714542]
[1753155755626,5.0448996,198.22,198.15,5.04656246]
[1753155755867,10.72714542,198.16,198.0,1.5245]
[1753155756026,10.72714542,198.17,198.11,10.72714542]
[1753155756223,10.72714542,198.22,198.16,10.72714542]
[1753155756428,10.72714542,198.23,198.17,10.72714542]
[1753155756652,10.72714542,198.22,198.16,11.42714542]
[1753155756855,0.66,198.23,198.14,10.72714542]
[1753155757144,10.72714542,198.2,198.14,10.72714542]
[1753155757354,10.72714542,198.17,198.1,0.7]
[1753155757554,10.72714542,198.16,198.11,10.72714542]
[1753155757726,5.0466818,198.15,198.1,0.7]
[1753155758055,11.41714542,198.14,198.08,50.24714542]
[1753155758239,0.69,198.14,198.1,10.72714542]
[1753155758451,5.0466818,198.15,198.1,10.72714542]
[1753155758649,0.69,198.19,198.12,10.72714542]
[1753155758834,0.69,198.19,198.06,0.03]
[1753155758835,11.41714542,198.19,198.13,10.72714542]
[1753155759034,10.72714542,198.18,198.12,10.72714542]
[1753155759630,15.77331789,198.17,198.11,10.72714542]
[1753155759838,10.72714542,198.16,198.11,10.72714542]
[1753155760040,5.73617247,198.17,198.08,0.69]
[1753155760041,18.35160366,198.17,198.09,10.72714542]
[1753155760356,10.72714542,198.15,198.09,10.72714542]
[1753155760561,10.72714542,198.16,198.08,0.69]
[1753155760866,11.41714542,198.15,198.1,10.72714542]
[1753155761041,10.72714542,198.11,198.06,0.03]
[1753155761236,7.3395386,198.1,198.06,0.03]
[1753155761554,7.3395386,198.12,198.07,7.3395386]
[1753155761859,7.3395386,198.1,198.06,0.03]
[1753155762172,5.04770077,198.11,198.07,7.3395386]
[1753155762462,7.3395386,198.15,198.09,7.3395386]
[1753155762644,7.3395386,198.14,198.09,7.3395386]
[1753155762969,26.69,198.17,198.06,0.03]
[1753155762970,7.3395386,198.11,198.06,7.3695386]
[1753155763339,8.0295386,198.1,198.06,0.03]
[1753155763560,0.69,198.13,198.06,0.03]
[1753155763740,7.3395386,198.11,198.06,0.03]
[1753155763940,7.3395386,198.09,198.06,0.03]
[1753155764168,7.3395386,198.11,198.06,0.03]
[1753155764654,7.3395386,198.1,198.06,0.03]
[1753155764968,8.0295386,198.11,198.06,0.03]
[1753155765150,0.69,198.09,198.06,0.03]
[1753155765341,26.0,198.08,198.06,0.03]
[1753155765665,12.38825874,198.07,198.06,0.03]
[1753155765906,5.73872014,198.07,198.06,0.03]
[1753155766073,5.04872014,198.07,198.06,0.03]
[1753155766362,7.3395386,198.1,198.06,0.03]
[1753155766777,7.3395386,198.09,198.06,0.03]
[1753155767462,12.38739642,198.11,198.06,0.03]
[1753155767765,26.0,198.13,198.07,7.3395386]
[1753155767766,7.3395386,198.12,198.07,7.3395386]
[1753155767973,0.69,198.2,198.11,7.3395386]
[1753155768143,5.04449647,198.24,198.15,7.3395386]
[1753155768348,7.3395386,198.21,198.15,7.3395386]
[1753155768553,5.04449647,198.24,198.14,0.69]
[1753155768554,7.3395386,198.18,198.14,0.69]
[1753155768867,24.99501166,198.24,198.12,7.3395386]
[1753155768868,7.3395386,198.17,198.12,7.3395386]
[1753155769167,7.3395386,198.15,198.1,7.3395386]
[1753155769344,7.3395386,198.15,198.1,13.07741871]
[1753155769760,7.3395386,198.15,198.1,12.38741871]
[1753155769958,0.69,198.18,198.07,13.45373177]
[1753155770276,7.3395386,198.18,198.13,7.3395386]
[1753155770446,7.3395386,198.18,198.13,8.0295386]
[1753155770859,7.3395386,198.19,198.14,0.69]
[1753155771062,26.0,198.15,198.06,0.03]
[1753155771268,26.0,198.15,198.08,7.3395386]
[1753155771269,5.04719123,198.13,198.08,7.3395386]
[1753155771449,5.04719123,198.13,198.08,8.0295386]
[1753155771649,8.0295386,198.12,198.06,7.3695386]
[1753155771873,7.3395386,198.1,198.06,0.03]
[1753155772247,7.3395386,198.11,198.06,0.03]
[1753155772452,17.66516932,198.13,198.06,0.03]
[1753155772453,0.69,198.1,198.06,0.03]
[1753155772771,4.25654046,198.12,198.06,0.03]
[1753155772959,7.3395386,198.1,198.06,0.03]
[1753155773277,7.3395386,198.09,198.06,0.03]
[1753155773454,5.04846526,198.08,198.06,0.03]
[1753155774049,7.3395386,198.09,198.06,0.03]
[1753155774050,8.0295386,198.07,198.06,0.03]
[1753155774567,0.69,198.07,198.06,0.03]
[1753155774956,8.0295386,198.07,198.06,0.03]
[1753155775360,8.62730336,198.07,198.06,0.03]
[1753155775770,9.31752936,198.07,198.06,0.03]
[1753155775974,5.04872014,198.07,198.06,0.03]
[1753155776172,7.3395386,198.1,198.06,0.03]
[1753155776477,3.58343265,198.09,198.06,0.03]
[1753155776774,3.58505767,198.08,198.06,0.03]
[1753155777073,5.7366818,198.15,198.07,0.69]
[1753155777281,7.3395386,198.12,198.07,0.69]
[1753155777455,7.3395386,198.1,198.06,0.03]
[1753155777653,3.58581172,198.09,198.06,0.03]
[1753155777869,5.04770077,198.11,198.06,0.03]
[1753155778174,10.9320304,198.1,198.06,0.03]
[1753155778368,5.04745172,198.12,198.06,0.03]
[1753155778369,3.5924918,198.09,198.06,0.03]
[1753155778684,5.04745172,198.12,198.06,0.03]
[1753155778990,7.3395386,198.09,198.06,0.03]
[1753155779187,0.69,198.1,198.06,0.03]
[1753155779188,3.59519498,198.08,198.06,0.03]
[1753155779391,3.59519498,198.07,198.06,0.03]
[1753155779758,4.28519498,198.07,198.06,0.03]
[1753155779975,3.59519498,198.07,198.06,0.03]
[1753155780388,0.69,198.19,198.07,16.78468397]
[1753155780686,3.6059973,198.18,198.14,7.3395386]
[1753155780921,3.6059973,198.18,198.11,0.14216157]
[1753155780922,7.3395386,198.16,198.11,0.69]
[1753155781183,7.3395386,198.12,198.06,0.03]
[1753155781357,7.3395386,198.07,198.06,0.03]
[1753155781665,5.04872014,198.07,198.06,0.03]
[1753155781865,0.69,198.07,198.06,0.03]
[1753155782068,5.04719123,198.13,198.06,8.0595386]
[1753155782261,5.04719123,198.13,198.06,0.72]
[1753155782462,7.3395386,198.15,198.09,7.3395386]
[1753155782672,7.3395386,198.15,198.07,0.14216157]
[1753155782673,7.3395386,198.11,198.07,0.69]
[1753155782871,7.3395386,198.1,198.06,1.6029]
[1753155783073,8.0295386,198.1,198.06,1.6029]
[1753155783274,7.3395386,198.1,198.06,1.6029]
[1753155783564,42.78468397,198.02,197.83,2.63158945]
[1753155783767,26.0,197.81,197.64,0.69]
[1753155783986,7.3395386,197.7,197.65,0.19]
[1753155784191,7.3395386,197.72,197.65,0.19]
[1753155784369,0.69,197.74,197.63,1.5729]
[1753155784869,26.0,197.71,197.5,2.62892501]
[1753155785075,7.3395386,197.62,197.49,5.06354752]
[1753155785274,0.69,197.64,197.48,1.5571]
[1753155785463,7.3395386,197.65,197.49,40.48]
[1753155785663,0.69,197.65,197.5,5.06329113]
[1753155785891,0.69,197.65,197.5,17.72151897]
[1753155786090,7.3395386,197.6,197.51,0.69]
[1753155786392,7.3395386,197.65,197.51,0.69]
[1753155786591,7.3395386,197.59,197.51,0.69]
[1753155786890,0.69,197.6,197.48,1.5571]
[1753155787069,7.3395386,197.56,197.48,1.5571]
[1753155787267,10.99439568,197.55,197.44,7.1014]
[1753155787490,0.69,197.56,197.44,0.69]
[1753155787681,3.57567105,197.6,197.44,5.75467709]
[1753155787871,10.99439568,197.67,197.53,16.78468397]
[1753155788079,11.68439568,197.68,197.61,10.99439568]
[1753155788281,10.99439568,197.62,197.54,0.68]
[1753155788591,0.71,197.67,197.55,16.92684554]
[1753155788790,0.71,197.67,197.56,0.14216157]
[1753155788993,3.57014969,197.73,197.63,16.92684554]
[1753155789208,10.99439568,197.78,197.65,0.14216157]
[1753155789493,10.99439568,197.72,197.63,0.14216157]
[1753155789663,10.99439568,197.72,197.62,0.68]
[1753155789664,10.99439568,197.69,197.61,0.14216157]
[1753155789867,10.99439568,197.68,197.59,0.68]
[1753155790068,0.71,197.71,197.6,0.14216157]
[1753155790296,10.99439568,197.68,197.59,0.68]
[1753155790793,10.99439568,197.69,197.59,0.68]
[1753155790973,10.99439568,197.67,197.59,0.68]
[1753155791288,10.99439568,197.65,197.56,5.06160874]
[1753155791588,10.99439568,197.64,197.56,5.06160874]
[1753155791771,10.99439568,197.64,197.54,0.68]
[1753155791772,0.71,197.65,197.54,5.74207876]
[1753155791965,10.99439568,197.61,197.52,5.06270515]
[1753155792162,0.71,197.6,197.48,5.06363207]
[1753155792383,26.0,197.59,197.46,5.06411278]
[1753155792582,10.99439568,197.55,197.46,5.06411278]
[1753155792787,10.99439568,197.56,197.49,10.99439568]
[1753155792994,0.71,197.58,197.48,0.68]
[1753155793177,0.71,197.62,197.49,26.0]
[1753155793380,0.71,197.62,197.5,0.82216157]
[1753155793579,0.71,197.65,197.58,10.99439568]
[1753155793781,11.70439568,197.73,197.64,10.99439568]
[1753155793982,0.71,197.73,197.67,10.99439568]
[1753155794172,10.99439568,197.7,197.59,1.5716]
[1753155794371,11.70439568,197.73,197.61,16.92684554]
[1753155794701,41.98,197.94,197.73,0.14216157]
[1753155794907,0.6927,197.95,197.69,16.78468397]
[1753155794908,11.704396,197.92,197.84,10.99439568]
[1753155795067,12.49110237,197.99,197.87,10.99439568]
[1753155795385,10.99439568,197.97,197.9,10.99439568]
[1753155795702,0.71,197.98,197.87,0.14216157]
[1753155795703,10.99439568,197.96,197.87,0.14216157]
[1753155795990,10.99439568,197.96,197.9,10.99439568]
[1753155796200,0.71,198.0,197.91,10.99439568]
[1753155796372,10.99439568,197.97,197.91,10.99439568]
[1753155796696,10.99439568,197.98,197.91,10.99439568]
[1753155797097,10.994395,198.06,197.94,10.99439568]
[1753155797299,0.71,198.04,197.95,10.99439568]
[1753155797502,10.99439568,197.97,197.91,10.99439568]
[1753155797673,0.71,198.04,197.92,0.68]
[1753155797870,4.24490463,198.09,197.96,0.14216157]
[1753155798068,10.99439568,198.02,197.92,0.14216157]
[1753155798294,10.99439568,198.02,197.95,10.99439568]
[1753155798498,10.99439568,198.07,198.0,10.99439568]
[1753155798673,3.53345315,198.06,198.04,10.99439568]
[1753155798877,0.71,198.13,197.99,0.82216157]
[1753155798878,10.99439568,198.11,198.01,0.68]
[1753155799091,10.99439568,198.07,197.97,0.68]
[1753155799391,10.99439568,198.08,198.01,10.99439568]
[1753155799689,10.99439568,198.11,198.04,10.99439568]
[1753155799896,10.99439568,198.1,198.0,0.68]
[1753155800088,10.99439568,198.1,198.03,10.99439568]
[1753155800290,10.99439568,198.04,197.97,10.99439568]
[1753155800491,10.99439568,198.01,197.95,0.68]
[1753155800794,0.71,198.05,197.93,10.99439568]
[1753155800996,0.71,198.05,197.94,10.99439568]
[1753155801180,10.99439568,198.01,197.94,10.99439568]
[1753155801502,10.99439568,198.02,197.96,10.99439568]
[1753155801699,10.99439568,197.97,197.91,12.60949568]
[1753155801876,26.71,198.02,197.91,12.60949568]
[1753155801877,26.0,198.01,197.91,12.60949568]
[1753155802073,26.0,198.04,197.95,10.99439568]
[1753155802274,10.99439568,198.04,197.98,10.99439568]
[1753155802489,0.71,198.09,197.96,0.03]
[1753155802490,10.99439568,198.0,197.96,0.03]
[1753155802697,10.99439568,198.01,197.96,0.03]
[1753155803001,10.99439568,197.99,197.96,0.03]
[1753155803609,10.99439568,198.0,197.96,0.03]
[1753155804187,10.99439568,197.98,197.96,0.03]
[1753155805104,10.99439568,197.97,197.96,0.03]
[1753155805413,26.0,198.0,197.96,0.03]
[1753155805577,10.99439568,197.97,197.96,0.03]
[1753155805777,0.6,197.97,197.96,0.03]
[1753155806199,11.704396,198.06,197.96,0.03]
[1753155806510,10.99439568,198.02,197.96,0.71]
[1753155806680,10.99439568,198.05,197.98,10.99439568]
[1753155806879,16.04342293,198.06,198.0,10.99439568]
[1753155807081,10.99439568,198.04,197.97,10.99439568]
[1753155807299,10.99439568,198.02,197.96,0.71]
[1753155807499,10.99439568,198.05,197.99,10.99439568]
[1753155808807,5.04932005,198.05,197.97,10.99439568]
[1753155809097,10.99439568,198.03,197.97,10.99439568]
[1753155809478,10.99439568,198.04,197.97,10.99439568]
[1753155809681,5.04795557,198.1,197.98,10.99439568]
[1753155809876,10.99439568,198.09,198.03,10.99439568]
[1753155810101,10.99439568,198.08,198.02,10.99439568]
[1753155810802,10.99439568,198.13,198.06,10.99439568]
[1753155811103,10.994396,198.16,197.99,0.14216157]
[1753155811104,10.99439568,198.08,197.99,0.68]
[1753155811309,10.99439568,198.05,197.96,0.03]
[1753155811597,10.99439568,198.05,197.98,10.99439568]
[1753155811812,0.71,198.07,197.97,10.99439568]
[1753155811983,0.71,198.07,197.96,11.70439568]
[1753155811984,1.31,198.07,197.96,11.70439568]
[1753155812309,10.99439568,198.06,197.99,10.99439568]
[1753155812712,16.04356209,198.06,197.99,10.99439568]
[1753155813007,36.99439568,198.08,198.01,10.99439568]
[1753155813185,5.04875708,198.07,198.01,10.99439568]
[1753155813382,10.99439568,198.15,198.06,10.99439568]
[1753155813597,10.99439568,198.17,198.1,10.99439568]
[1753155813797,10.99439568,198.17,198.11,10.99439568]
[1753155814009,10.99439568,198.12,198.05,10.99439568]
[1753155814206,10.99439568,198.12,198.0,10.99439568]
[1753155814207,10.99439568,198.06,198.0,10.99439568]
[1753155814506,10.99439568,198.05,197.99,10.99439568]
[1753155814686,16.0436524,198.05,197.99,10.99439568]
[1753155814894,10.99439568,198.07,198.01,10.99439568]
[1753155815279,10.99439568,198.07,198.0,0.68]
[1753155815487,5.04896585,198.07,198.0,0.68]
[1753155815686,16.04336153,198.07,198.01,10.99439568]
[1753155815890,16.04275142,198.09,198.02,10.99439568]
[1753155816115,10.99439568,198.08,198.01,10.99439568]
[1753155816408,16.04275142,198.09,198.02,11.67439568]
[1753155816610,10.99439568,198.07,198.0,10.99439568]
[1753155816810,26.0,198.11,197.98,5.19315287]
[1753155816811,5.04922999,198.05,197.99,10.99439568]
[1753155817015,10.99439568,198.03,197.97,11.67439568]
[1753155817185,0.6,198.08,198.0,10.99439568]
[1753155817516,10.99439568,198.07,198.0,10.99439568]
[1753155817807,10.99439568,198.07,198.01,10.99439568]
[1753155818107,10.99439568,198.09,198.03,10.99439568]
[1753155818304,10.99439568,198.11,198.05,10.99439568]
[1753155818512,5.0466818,198.15,198.07,10.99439568]
[1753155818810,10.99439568,198.1,198.04,11.66439568]
[1753155818988,16.04212205,198.11,198.05,10.99439568]
[1753155819185,5.04772637,198.11,198.05,10.99439568]
[1753155819398,36.99439568,198.12,198.05,10.99439568]
[1753155819712,10.99439568,198.12,198.06,10.99439568]
[1753155819889,5.0469365,198.14,198.08,10.99439568]
[1753155820086,5.72515412,198.21,198.09,0.67]
[1753155820300,0.06,198.13,198.09,0.67]
[1753155820499,11.05439568,198.13,198.07,10.99439568]
[1753155820914,16.10163028,198.13,198.07,10.99439568]
[1753155821098,10.99439568,198.09,198.06,1.5364]
[1753155821414,10.99439568,198.09,198.02,0.14216157]
[1753155821415,10.99439568,198.07,197.99,1.5364]
[1753155821617,10.99439568,198.04,197.99,1.5364]
[1753155821912,10.99439568,198.05,198.0,0.67]
[1753155822310,10.99439568,198.05,197.99,12.53079568]
[1753155822519,10.99439568,198.05,198.01,0.67]
[1753155822690,17.67230497,198.05,197.99,1.5364]
[1753155823018,0.68,198.04,197.96,0.03]
[1753155823393,10.99439568,198.01,197.96,0.03]
[1753155823725,10.99439568,198.0,197.96,0.03]
[1753155824018,5.04922999,198.05,197.97,0.67]
[1753155824321,0.06,198.13,198.05,0.14216157]
[1753155824612,0.06,198.13,198.12,11.13655725]
[1753155824800,0.06,198.17,198.14,5.0469365]
[1753155825003,0.06,198.24,198.16,11.13655725]
[1753155825201,0.06,198.24,198.23,10.99439568]
[1753155825401,0.06,198.24,198.23,11.13655725]
[1753155825610,0.06,198.28,198.23,11.13655725]
[1753155825611,0.06,198.28,198.25,1.5231]
[1753155825951,0.06,198.32,198.28,0.14216157]
[1753155826208,0.06,198.35,198.28,0.14216157]
[1753155826209,0.06,198.35,198.32,10.99439568]
[1753155826403,0.06,198.35,198.29,0.67]
[1753155826404,0.06,198.35,198.3,10.99439568]
[1753155826601,0.06,198.35,198.33,10.99439568]
[1753155826805,0.06,198.35,198.34,11.80655725]
[1753155827110,0.06,198.35,198.34,16.84840458]
[1753155827294,0.1,198.44,198.35,16.92684554]
[1753155827502,0.1,198.44,198.38,11.13655725]
[1753155827909,11.09439568,198.44,198.38,10.99439568]
[1753155828109,2.116993,198.44,198.35,0.67]
[1753155828296,0.1,198.44,198.38,11.13655725]
[1753155828612,0.1,198.44,198.39,0.14216157]
[1753155828811,0.1,198.44,198.43,5.18172212]
[1753155828993,0.1,198.55,198.44,0.14216157]
[1753155829193,5.13655802,198.55,198.45,0.67]
[1753155829503,0.1,198.55,198.46,0.14216157]
[1753155829685,5.13653001,198.55,198.46,0.14216157]
[1753155829888,5.13653001,198.55,198.5,10.99439568]
[1753155830089,0.1,198.55,198.52,10.99439568]
[1753155830290,0.1,198.55,198.53,10.99439568]
[1753155830685,0.1,198.55,198.54,10.99439568]
[1753155830901,0.1,198.55,198.52,10.99439568]
[1753155831214,0.1,198.55,198.54,10.99439568]
[1753155831613,0.1,198.55,198.54,11.66439568]
[1753155831991,0.1,198.55,198.54,0.67]
[1753155832187,0.1,198.55,198.54,11.80655725]
[1753155832594,0.06,198.59,198.54,11.80655725]
[1753155832595,0.06,198.59,198.55,0.14216157]
[1753155832789,0.06,198.59,198.44,14.15828429]
[1753155833093,0.68,198.58,198.49,10.99439568]
[1753155833291,0.68,198.58,198.45,0.67]
[1753155833609,26.68,198.58,198.47,10.99439568]
[1753155833916,10.99439568,198.55,198.48,10.99439568]
[1753155834218,10.99439568,198.49,198.42,10.99439568]
[1753155834515,0.68,198.54,198.45,10.99439568]
[1753155834516,10.99439568,198.52,198.45,10.99439568]
[1753155834698,0.68,198.54,198.45,10.99439568]
[1753155834898,10.99439568,198.52,198.46,10.99439568]
[1753155835100,10.99439568,198.52,198.42,0.67]
[1753155835417,10.99439568,198.52,198.45,10.99439568]
[1753155835620,10.99439568,198.51,198.42,0.81216157]
[1753155835829,10.99439568,198.51,198.44,10.99439568]
[1753155836004,26.68,198.5,198.42,10.99439568]
[1753155836194,26.68,198.5,198.38,41.87]
[1753155836195,26.68,198.5,198.41,10.99439568]
[1753155836402,37.67439568,198.5,198.43,10.99439568]
[1753155836597,0.68,198.5,198.43,10.99439568]
[1753155836801,26.0,198.52,198.46,10.99439568]
[1753155837110,5.71691099,198.54,198.48,10.99439568]
[1753155837313,5.03691099,198.54,198.48,10.99439568]
[1753155837494,10.99439568,198.56,198.49,10.99439568]